Workbook

Sheet Sheet1
A1: Section of Notice | B1: Form No. (if any) | C1: No. of Respondents | D1: Reports Filed Annually | E1: Total Annual Responses (C) x (D) | F1: Estimated No. of Manhours per response | G1: Estimated Total Manhours (E) x (F) | H1: Wage Class | I1: Total Cost (G) x (H)
A2: Paperwork Requirements - Forms
A3: §4284.16(c)(3) | B3: AD 1047 (0505-0027) | C3: 1 | D3: 1 | E3: 1 | F3: 0.25 | G3: =E3*F3 -> 0.25 | H3: $25.76 | I3: =(G3)*(H3) -> $6.44
B4: AD 1048 (0505-0027) | C4: 1 | D4: 1 | E4: 1 | F4: 0.25 | G4: =E4*F4 -> 0.25 | H4: $25.76 | I4: =(G4)*(H4) -> $6.44
B5: AD 1049 (0505-0027) | C5: 1 | D5: 1 | E5: 1 | F5: 0.25 | G5: 0.25 | H5: $25.76 | I5: $6.44
B6: AD-3030 (0505-0025) | C6: 1 | D6: 1 | E6: =C6*D6 -> 1 | F6: 0.25 | G6: 0.25 | H6: $25.76 | I6: $6.44
B7: AD-3031 (0505-0025) | C7: 1 | D7: 1 | E7: 1 | F7: 0.25 | G7: 0.25 | H7: $25.76 | I7: $6.44
A8: §4284.8 | B8: RD 1940-1 (0570-0062) | C8: 1 | D8: 1 | E8: =C8*D8 -> 1 | F8: 0.5 | G8: 0.50 | H8: $25.76 | I8: $12.88
A9: §4284.16(a) | B9: RD 1940-20 (0575-0094) | C9: 1 | D9: 1 | E9: 1 | F9: 0.5 | G9: 0.50 | H9: $25.76 | I9: $12.88
A10: §4284.1014(b) | B10: RD 1942-46 (0575-0015) | C10: 1 | D10: 1 | E10: 1 | F10: 0.25 | G10: 0.25 | H10: $25.76 | I10: $6.44
A11: §4284.16(b) | B11: RD 400-4 (0575-0018) | C11: 1 | D11: 1 | E11: 1 | F11: 0.5 | G11: 0.50 | H11: $25.76 | I11: $12.88
A12: Subtotal | E12: =SUM(E3:E11) -> 9 | G12: =SUM(G3:G11) -> 3.00 | I12: =SUM(I3:I11) -> $77.28
A13: Paperwork Requirements - No Forms
A14: §4284.1014(c) | B14: Grant Agreement | C14: 1 | D14: 1 | E14: 1 | F14: 1 | G14: =E14*F14 -> 1.00 | H14: $25.76 | I14: =(G14)*(H14) -> $25.76
A15: §4284.1010(c) | B15: Proposal | C15: 1 | D15: 1 | E15: 1 | F15: 15 | G15: 15.00 | H15: $25.76 | I15: $386.40
A16: §4284.17 | B16: RD 1940-Q, Exhibit A-1 | C16: 1 | D16: 1 | E16: 1 | F16: 0.25 | G16: =E16*F16 -> 0.25 | H16: $25.76 | I16: $6.44
A17: Reporting Requirements - Post Awards
A18: §4284.12(b) | B18: Perf. Report | C18: 1 | D18: 2 | E18: =C18*D18 -> 2 | F18: 4 | G18: =E18*F18 -> 8.00 | H18: $25.76 | I18: =(G18)*(H18) -> $206.08
A19: §4284.12(c) | B19: Final Report | C19: 1 | D19: 1 | E19: =C19*D19 -> 1 | F19: 3 | G19: 3.00 | H19: $25.76 | I19: $77.28
A20: Grand Total | E20: =E12+E14+E15+E16+E18+E19 -> 15 | G20: =G12+G14+G15+G16+G18+G19 -> 30.25 | I20: =I12+I14+I15+I16+I18+I19 -> $779.24
A22: Form & Burden Approved under other OMB Number
B23: SF-3881 (1510-0056) | C23: 1 | D23: 1 | E23: =C23*D23 -> 1 | F23: 0.50 | G23: =E23*F23 -> 0.50 | H23: $25.76 | I23: =(G23)*(H23) -> $12.88
A25: Common Form Burden Approved as RCF; Form Approved Under Other Burden Packages
A26: §4284.1010(b)(1) | B26: SF-424 (4040-0004) | C26: 1 | D26: 1 | E26: =C26*D26 -> 1 | F26: 0.50 | G26: =E26*F26 -> 0.50 | H26: $25.76 | I26: =(G26)*(H26) -> $12.88
A27: §4284.1010(b)(2) | B27: SF-424A (4040-0006) | C27: 1 | D27: 1 | E27: =C27*D27 -> 1 | F27: 0.50 | G27: =E27*F27 -> 0.50 | H27: $25.76 | I27: =(G27)*(H27) -> $12.88
A28: §4284.1010(b)(3) | B28: SF-424B (4040-0007) | C28: 1 | D28: 1 | E28: 1 | F28: 0.25 | G28: 0.25 | H28: $25.76 | I28: =(G28)*(H28) -> $6.44
B29: SF-3881 (1510-0056) | C29: 1 | D29: 1 | E29: 1 | F29: 0.50 | G29: 0.50 | H29: $25.76 | I29: =(G29)*(H29) -> $12.88
A30: §4284.11(c) | B30: SF-270 (4040-0012) | C30: 1 | D30: 12 | E30: 12 | F30: 1.00 | G30: 12.00 | H30: $25.76 | I30: $309.12
A31: §4284.12(a) | B31: SF-425 (4040-0014) | C31: 1 | D31: 4 | E31: 4 | F31: 1.50 | G31: 6.00 | H31: $25.76 | I31: $154.56
A32: §4284.16(c)(4) | B32: SF-LLL (4040-0013) | C32: 1 | D32: 1 | E32: 1 | F32: 0.25 | G32: 0.25 | H32: $25.76 | I32: $6.44
A33: RCF Burden Total | E33: =SUM(E26:E32) -> 21 | G33: =SUM(G26:G32) -> 20.00
A36: Annual Cost to the Federal Government
A38: Process Applications | C38: 1 | D38: 1 | E38: =C38*D38 -> 1 | F38: 15 | G38: =E38*F38 -> 15 | H38: $49.32 | I38: =G38*H38 -> $739.80
A39: Prepare Legal Documents | C39: 1 | D39: 1 | E39: =C39*D39 -> 1 | F39: 15 | G39: =E39*F39 -> 15 | H39: $49.32 | I39: =G39*H39 -> $739.80
A40: Monitor Awards | C40: 1 | D40: 1 | E40: 1 | F40: 30 | G40: 30 | H40: $49.32 | I40: $1,479.60
A42: Total | G42: =SUM(G35:G41) -> 60 | I42: =SUM(I35:I41) -> $2,959.20

Sheet Sheet2

Sheet Sheet3
